[Event "Live Chess"]
[Site "Chess.com"]
[Date "2023.05.21"]
[Round "-"]
[White "CroasArRheun"]
[Black "MarkLim1"]
[Result "0-1"]
[WhiteElo "1826"]
[BlackElo "1670"]
[TimeControl "300"]
[EndTime "23:43:35 PDT"]
[Termination "MarkLim1 won by resignation"]

1. d4 {[%clk 0:04:58.9]} 1... Nf6 {[%clk 0:04:59]} 2. c4 {[%clk 0:04:57.9]} 2...
e6 {[%clk 0:04:58.3]} 3. Nc3 {[%clk 0:04:56.6]} 3... d5 {[%clk 0:04:57.8]} 4.
cxd5 {[%clk 0:04:56]} 4... Nxd5 {[%clk 0:04:56.6]} 5. e4 {[%clk 0:04:54.9]} 5...
Nxc3 {[%clk 0:04:56.1]} 6. bxc3 {[%clk 0:04:54.5]} 6... c5 {[%clk 0:04:55.7]} 7.
Nf3 {[%clk 0:04:52.9]} 7... cxd4 {[%clk 0:04:55.3]} 8. cxd4 {[%clk 0:04:52.2]}
8... Bb4+ {[%clk 0:04:54.9]} 9. Bd2 {[%clk 0:04:50.8]} 9... Bxd2+ {[%clk
0:04:54.2]} 10. Qxd2 {[%clk 0:04:50.7]} 10... O-O {[%clk 0:04:53.7]} 11. Bd3
{[%clk 0:04:49.6]} 11... Nc6 {[%clk 0:04:52]} 12. e5 {[%clk 0:04:44.2]} 12...
Qa5 {[%clk 0:04:50.8]} 13. Qxa5 {[%clk 0:04:39.6]} 13... Nxa5 {[%clk 0:04:49.9]}
14. O-O {[%clk 0:04:39.5]} 14... b6 {[%clk 0:04:48.8]} 15. Be4 {[%clk
0:04:36.9]} 15... Bb7 {[%clk 0:04:47.2]} 16. Bxb7 {[%clk 0:04:27.7]} 16... Nxb7
{[%clk 0:04:45.4]} 17. Rfc1 {[%clk 0:04:27.6]} 17... Rac8 {[%clk 0:04:44.1]} 18.
h3 {[%clk 0:04:25.1]} 18... h6 {[%clk 0:04:42.7]} 19. Kf1 {[%clk 0:04:23.8]}
19... Rfd8 {[%clk 0:04:41.5]} 20. Ke2 {[%clk 0:04:22.3]} 20... Kf8 {[%clk
0:04:39.8]} 21. Kd2 {[%clk 0:04:19.8]} 21... Ke7 {[%clk 0:04:39.2]} 22. Rc3
{[%clk 0:04:05.1]} 22... Rxc3 {[%clk 0:04:37.1]} 23. Kxc3 {[%clk 0:04:05]} 23...
Kd7 {[%clk 0:04:36.7]} 24. Rc1 {[%clk 0:03:58]} 24... Rc8+ {[%clk 0:04:35.9]}
25. Kd2 {[%clk 0:03:56.2]} 25... Rxc1 {[%clk 0:04:34.6]} 26. Kxc1 {[%clk
0:03:56.1]} 26... Kc6 {[%clk 0:04:33.9]} 27. Kc2 {[%clk 0:03:54.7]} 27... Kd5
{[%clk 0:04:30.5]} 28. Kd3 {[%clk 0:03:53.6]} 28... Na5 {[%clk 0:04:29.8]} 29.
Nd2 {[%clk 0:03:50.2]} 29... Nc6 {[%clk 0:04:26.1]} 30. Nf3 {[%clk 0:03:34.6]}
30... Nb4+ {[%clk 0:04:24.9]} 31. Kc3 {[%clk 0:03:29.9]} 31... Nxa2+ {[%clk
0:04:21.9]} 32. Kb3 {[%clk 0:03:21.7]} 32... Nc1+ {[%clk 0:04:19.8]} 33. Kc2
{[%clk 0:03:19.8]} 33... Ne2 {[%clk 0:04:15.4]} 34. Kd3 {[%clk 0:03:16]} 34...
Nf4+ {[%clk 0:04:14.2]} 35. Kc3 {[%clk 0:03:13]} 35... Nxg2 {[%clk 0:04:12.2]}
36. Kb4 {[%clk 0:03:10.5]} 36... a6 {[%clk 0:04:10.1]} 37. Ka4 {[%clk 0:03:08]}
37... Nf4 {[%clk 0:04:07.7]} 38. Kb4 {[%clk 0:03:06.7]} 38... Ne2 {[%clk
0:04:04.6]} 0-1

[Event "Live Chess"]
[Site "Chess.com"]
[Date "2023.05.21"]
[Round "-"]
[White "AlanPaling"]
[Black "rmethornhill"]
[Result "1-0"]
[WhiteElo "1369"]
[BlackElo "1182"]
[TimeControl "300"]
[EndTime "23:43:46 PDT"]
[Termination "AlanPaling won on time"]

1. c4 {[%clk 0:04:57.8]} 1... Nf6 {[%clk 0:04:54.8]} 2. Nc3 {[%clk 0:04:56.6]}
2... e6 {[%clk 0:04:50.9]} 3. e4 {[%clk 0:04:55.4]} 3... Bb4 {[%clk 0:04:44.8]}
4. Nge2 {[%clk 0:04:53.4]} 4... d6 {[%clk 0:04:43.1]} 5. g3 {[%clk 0:04:51.9]}
5... e5 {[%clk 0:04:39.6]} 6. Bg2 {[%clk 0:04:49.8]} 6... O-O {[%clk 0:04:37.8]}
7. O-O {[%clk 0:04:48.3]} 7... Bg4 {[%clk 0:04:36.3]} 8. f3 {[%clk 0:04:41]}
8... Be6 {[%clk 0:04:34.3]} 9. a3 {[%clk 0:04:38.2]} 9... Bxc3 {[%clk
0:04:30.5]} 10. Nxc3 {[%clk 0:04:36.8]} 10... Bxc4 {[%clk 0:04:29.5]} 11. Rf2
{[%clk 0:04:33.8]} 11... Nc6 {[%clk 0:04:28.3]} 12. d3 {[%clk 0:04:30.6]} 12...
Be6 {[%clk 0:04:18.6]} 13. Be3 {[%clk 0:04:10.7]} 13... Nd4 {[%clk 0:04:11.1]}
14. Ne2 {[%clk 0:04:01]} 14... c5 {[%clk 0:04:05.1]} 15. f4 {[%clk 0:03:54.9]}
15... Bg4 {[%clk 0:03:54.1]} 16. Bf1 {[%clk 0:03:53.6]} 16... exf4 {[%clk
0:03:46.3]} 17. gxf4 {[%clk 0:03:38.2]} 17... Bxe2 {[%clk 0:03:24]} 18. Bxe2
{[%clk 0:03:36]} 18... Nxe2+ {[%clk 0:03:19.4]} 19. Qxe2 {[%clk 0:03:34]} 19...
Qd7 {[%clk 0:03:07.1]} 20. Rg2 {[%clk 0:03:25.6]} 20... Rae8 {[%clk 0:02:52.5]}
21. Qf3 {[%clk 0:03:10.8]} 21... Re7 {[%clk 0:02:38.9]} 22. Qg3 {[%clk
0:03:07.3]} 22... Nh5 {[%clk 0:02:28]} 23. Qg4 {[%clk 0:03:03.8]} 23... Qxg4
{[%clk 0:02:25.5]} 24. Rxg4 {[%clk 0:03:02.5]} 24... Rfe8 {[%clk 0:02:03.5]} 25.
Kf2 {[%clk 0:02:54.7]} 25... Kf8 {[%clk 0:01:49.6]} 26. Rag1 {[%clk 0:02:48.5]}
26... g6 {[%clk 0:01:46.9]} 27. f5 {[%clk 0:02:44.3]} 27... d5 {[%clk
0:01:39.6]} 28. Bh6+ {[%clk 0:02:31.5]} 28... Kg8 {[%clk 0:01:37.5]} 29. fxg6
{[%clk 0:02:15]} 29... fxg6 {[%clk 0:01:36]} 30. Bg5 {[%clk 0:02:06.2]} 30...
Rf7+ {[%clk 0:01:27.1]} 31. Ke3 {[%clk 0:02:04.4]} 31... dxe4 {[%clk 0:01:23.9]}
32. Rxe4 {[%clk 0:01:58.6]} 32... Rxe4+ {[%clk 0:01:22]} 33. dxe4 {[%clk
0:01:56.2]} 33... Ng7 {[%clk 0:00:48.4]} 34. Rd1 {[%clk 0:01:48.5]} 34... Rf8
{[%clk 0:00:45]} 35. Rd7 {[%clk 0:01:45.1]} 35... Re8 {[%clk 0:00:32.7]} 36.
Rxb7 {[%clk 0:01:41.5]} 36... Nf5+ {[%clk 0:00:31.6]} 37. Kf4 {[%clk 0:01:29.4]}
37... Nd6 {[%clk 0:00:30.4]} 38. Rxa7 {[%clk 0:01:24.9]} 38... Rxe4+ {[%clk
0:00:25]} 39. Kf3 {[%clk 0:01:23.7]} 39... Re5 {[%clk 0:00:18.8]} 40. Bf4 {[%clk
0:01:16.7]} 40... Rf5 {[%clk 0:00:15.3]} 41. Rd7 {[%clk 0:01:08.1]} 41... Nf7
{[%clk 0:00:10.9]} 42. Ke4 {[%clk 0:00:55.6]} 42... Ng5+ {[%clk 0:00:06.2]} 43.
Ke3 {[%clk 0:00:51.8]} 43... Ne6 {[%clk 0:00:03.7]} 44. Bg3 {[%clk 0:00:50.3]}
1-0

[Event "Live Chess"]
[Site "Chess.com"]
[Date "2023.05.21"]
[Round "-"]
[White "Shepherds_Pie"]
[Black "chessfiction"]
[Result "0-1"]
[WhiteElo "1923"]
[BlackElo "2347"]
[TimeControl "300"]
[EndTime "23:44:52 PDT"]
[Termination "chessfiction won by resignation"]

1. c4 {[%clk 0:04:56.9]} 1... d5 {[%clk 0:04:59.2]} 2. cxd5 {[%clk 0:04:55.3]}
2... c6 {[%clk 0:04:59.1]} 3. d4 {[%clk 0:04:53.2]} 3... Nf6 {[%clk 0:04:58]} 4.
Nf3 {[%clk 0:04:50.8]} 4... cxd5 {[%clk 0:04:56.3]} 5. Nc3 {[%clk 0:04:49.5]}
5... Nc6 {[%clk 0:04:56.2]} 6. g3 {[%clk 0:04:46.9]} 6... h5 {[%clk 0:04:55.1]}
7. h4 {[%clk 0:04:40.9]} 7... Bg4 {[%clk 0:04:53.2]} 8. Bg2 {[%clk 0:04:38.6]}
8... e6 {[%clk 0:04:52.5]} 9. O-O {[%clk 0:04:36.4]} 9... Bd6 {[%clk 0:04:51.3]}
10. Nb5 {[%clk 0:04:32.1]} 10... Bb8 {[%clk 0:04:49.6]} 11. Bd2 {[%clk
0:04:26.4]} 11... a6 {[%clk 0:04:48.6]} 12. Nc3 {[%clk 0:04:22.3]} 12... Bxf3
{[%clk 0:04:45.7]} 13. Bxf3 {[%clk 0:04:20.5]} 13... Nxd4 {[%clk 0:04:45.6]} 14.
Bg2 {[%clk 0:04:19.5]} 14... Ng4 {[%clk 0:04:40.5]} 15. e4 {[%clk 0:04:17.3]}
15... Qb6 {[%clk 0:04:30.2]} 16. exd5 {[%clk 0:04:11.9]} 16... Bxg3 {[%clk
0:04:25]} 17. Be3 {[%clk 0:03:59.5]} 17... Nxe3 {[%clk 0:04:13.4]} 18. fxe3
{[%clk 0:03:57]} 18... Nf5 {[%clk 0:04:12.5]} 19. Rxf5 {[%clk 0:03:34.1]} 19...
Qxe3+ {[%clk 0:04:07.7]} 20. Kh1 {[%clk 0:03:31.6]} 20... exf5 {[%clk
0:04:06.6]} 21. d6 {[%clk 0:03:24.2]} 21... O-O {[%clk 0:03:57.6]} 22. Qxh5
{[%clk 0:03:21.6]} 22... Qf4 {[%clk 0:03:54.7]} 23. Rf1 {[%clk 0:03:15.7]} 23...
g6 {[%clk 0:03:48.8]} 24. Rxf4 {[%clk 0:03:10.7]} 24... gxh5 {[%clk 0:03:48]}
25. Rxf5 {[%clk 0:03:09.1]} 25... Bxh4 {[%clk 0:03:42.4]} 26. Rxh5 {[%clk
0:03:04.9]} 26... Bf6 {[%clk 0:03:41.3]} 27. Nd5 {[%clk 0:03:02.5]} 27... Kg7
{[%clk 0:03:38.8]} 28. Be4 {[%clk 0:02:54.3]} 28... Rh8 {[%clk 0:03:37]} 29.
Rxh8 {[%clk 0:02:45.3]} 29... Rxh8+ {[%clk 0:03:36.9]} 30. Kg2 {[%clk
0:02:43.7]} 30... Rd8 {[%clk 0:03:35.3]} 31. Nxf6 {[%clk 0:02:40.4]} 31... Kxf6
{[%clk 0:03:34]} 32. Bxb7 {[%clk 0:02:39.2]} 32... Rxd6 {[%clk 0:03:33]} 33. Be4
{[%clk 0:02:37.8]} 33... Rd2+ {[%clk 0:03:31.8]} 0-1

[Event "Live Chess"]
[Site "Chess.com"]
[Date "2023.05.21"]
[Round "-"]
[White "KeithArkell"]
[Black "MJMykh"]
[Result "1-0"]
[WhiteElo "2555"]
[BlackElo "966"]
[TimeControl "300"]
[EndTime "23:45:05 PDT"]
[Termination "KeithArkell won by checkmate"]

1. d4 {[%clk 0:04:58.1]} 1... d5 {[%clk 0:04:58.8]} 2. Nf3 {[%clk 0:04:57.2]}
2... Nc6 {[%clk 0:04:57]} 3. c4 {[%clk 0:04:56.5]} 3... dxc4 {[%clk 0:04:55.1]}
4. e4 {[%clk 0:04:52.5]} 4... Nf6 {[%clk 0:04:53.8]} 5. Nc3 {[%clk 0:04:50.7]}
5... e6 {[%clk 0:04:52.8]} 6. Bxc4 {[%clk 0:04:49.5]} 6... Bb4 {[%clk
0:04:52.1]} 7. e5 {[%clk 0:04:46.7]} 7... Bxc3+ {[%clk 0:04:50.3]} 8. bxc3
{[%clk 0:04:45.7]} 8... Nd5 {[%clk 0:04:49.3]} 9. Bd2 {[%clk 0:04:41.3]} 9...
O-O {[%clk 0:04:46.7]} 10. Bd3 {[%clk 0:04:38.6]} 10... h6 {[%clk 0:04:45.2]}
11. Qe2 {[%clk 0:04:36.5]} 11... Qe7 {[%clk 0:04:38.4]} 12. h4 {[%clk
0:04:35.1]} 12... Qa3 {[%clk 0:04:35.4]} 13. Qe4 {[%clk 0:04:33]} 13... f5
{[%clk 0:04:26.2]} 14. exf6 {[%clk 0:04:31]} 14... Nxf6 {[%clk 0:04:22.5]} 15.
Qe2 {[%clk 0:04:29.5]} 15... Nd5 {[%clk 0:04:17.4]} 16. Rc1 {[%clk 0:04:24.1]}
16... Qxa2 {[%clk 0:04:11.3]} 17. O-O {[%clk 0:04:13.9]} 17... Nf4 {[%clk
0:03:56.5]} 18. Bxf4 {[%clk 0:04:06.6]} 18... Qxe2 {[%clk 0:03:54.8]} 19. Bxe2
{[%clk 0:04:05.8]} 19... Rxf4 {[%clk 0:03:53.5]} 20. Bb5 {[%clk 0:04:01.1]}
20... Bd7 {[%clk 0:03:46.6]} 21. Rfe1 {[%clk 0:03:57.3]} 21... Rff8 {[%clk
0:03:40.1]} 22. Bxc6 {[%clk 0:03:51.4]} 22... Bxc6 {[%clk 0:03:31.4]} 23. Ne5
{[%clk 0:03:50.5]} 23... Bb5 {[%clk 0:03:21]} 24. c4 {[%clk 0:03:49.5]} 24...
Ba6 {[%clk 0:03:17.1]} 25. Nd7 {[%clk 0:03:47.2]} 25... Rfd8 {[%clk 0:03:11.3]}
26. Nc5 {[%clk 0:03:43.9]} 26... Rac8 {[%clk 0:02:49.6]} 27. Nxa6 {[%clk
0:03:41.4]} 27... bxa6 {[%clk 0:02:47.1]} 28. Rxe6 {[%clk 0:03:32.6]} 28... Rxd4
{[%clk 0:02:43.5]} 29. g3 {[%clk 0:03:31.7]} 29... Rd6 {[%clk 0:02:39.1]} 30.
Re5 {[%clk 0:03:28.9]} 30... Kf7 {[%clk 0:02:34.2]} 31. c5 {[%clk 0:03:26.6]}
31... Re6 {[%clk 0:02:29.3]} 32. Rd5 {[%clk 0:03:25.8]} 32... Ke7 {[%clk
0:02:26.2]} 33. Rcd1 {[%clk 0:03:25]} 33... Kf6 {[%clk 0:02:20.6]} 34. R1d3
{[%clk 0:03:23]} 34... Kg6 {[%clk 0:02:16.6]} 35. h5+ {[%clk 0:03:21.5]} 35...
Kh7 {[%clk 0:02:14.7]} 36. Rf3 {[%clk 0:03:15.5]} 36... Re1+ {[%clk 0:02:12.1]}
37. Kg2 {[%clk 0:03:14.5]} 37... Re6 {[%clk 0:02:09.6]} 38. Rf7 {[%clk
0:03:12.9]} 38... c6 {[%clk 0:02:02.2]} 39. Rdd7 {[%clk 0:03:11.7]} 39... Rg8
{[%clk 0:01:50.8]} 40. f4 {[%clk 0:02:43.5]} 40... Re2+ {[%clk 0:01:43.4]} 41.
Kh3 {[%clk 0:02:40.8]} 41... Rc2 {[%clk 0:01:39.3]} 42. f5 {[%clk 0:02:31.1]}
42... Rxc5 {[%clk 0:01:34.3]} 43. g4 {[%clk 0:02:30.2]} 43... a5 {[%clk
0:01:31]} 44. Rxa7 {[%clk 0:02:29.1]} 44... Rb5 {[%clk 0:01:26.3]} 45. Rfc7
{[%clk 0:02:26.5]} 45... c5 {[%clk 0:01:23.9]} 46. f6 {[%clk 0:02:25.6]} 46...
Rb3+ {[%clk 0:01:18.9]} 47. Kh4 {[%clk 0:02:24.2]} 47... Kh8 {[%clk 0:01:09.3]}
48. Rxc5 {[%clk 0:01:39.7]} 48... Ra3 {[%clk 0:00:52.5]} 49. Rcc7 {[%clk
0:01:34.3]} 49... a4 {[%clk 0:00:41.9]} 50. Re7 {[%clk 0:01:33.4]} 50... Ra1
{[%clk 0:00:26.8]} 51. f7 {[%clk 0:01:31.6]} 51... Rd8 {[%clk 0:00:13.3]} 52.
Re8+ {[%clk 0:01:30.6]} 52... Rxe8 {[%clk 0:00:12.7]} 53. fxe8=Q+ {[%clk
0:01:29.9]} 53... Kh7 {[%clk 0:00:12.4]} 54. Qe4+ {[%clk 0:01:28.6]} 54... Kh8
{[%clk 0:00:10.8]} 55. Qd4 {[%clk 0:01:26.4]} 55... Kh7 {[%clk 0:00:09.4]} 56.
Qxg7# {[%clk 0:01:24.9]} 1-0

[Event "Live Chess"]
[Site "Chess.com"]
[Date "2023.05.21"]
[Round "-"]
[White "toxic_rabbit"]
[Black "mirandaasilva"]
[Result "1-0"]
[WhiteElo "2000"]
[BlackElo "1630"]
[TimeControl "300"]
[EndTime "23:45:28 PDT"]
[Termination "toxic_rabbit won on time"]

1. e4 {[%clk 0:04:58.2]} 1... g6 {[%clk 0:04:57.6]} 2. Nf3 {[%clk 0:04:54.5]}
2... Bg7 {[%clk 0:04:57.5]} 3. c3 {[%clk 0:04:53.2]} 3... Nf6 {[%clk 0:04:53.8]}
4. e5 {[%clk 0:04:52.2]} 4... Nh5 {[%clk 0:04:50.8]} 5. d4 {[%clk 0:04:52.1]}
5... d5 {[%clk 0:04:47.9]} 6. h3 {[%clk 0:04:48]} 6... Bf8 {[%clk 0:04:15.5]} 7.
g4 {[%clk 0:04:44.4]} 7... Ng7 {[%clk 0:04:13]} 8. Bg2 {[%clk 0:04:39.2]} 8...
h5 {[%clk 0:04:01.9]} 9. Ng5 {[%clk 0:04:25.4]} 9... Ne6 {[%clk 0:03:45.8]} 10.
Nxe6 {[%clk 0:03:57.8]} 10... Bxe6 {[%clk 0:03:42]} 11. f4 {[%clk 0:03:53.4]}
11... hxg4 {[%clk 0:03:37.3]} 12. hxg4 {[%clk 0:03:53.3]} 12... Rxh1+ {[%clk
0:03:35.2]} 13. Bxh1 {[%clk 0:03:53.2]} 13... Nc6 {[%clk 0:03:26.7]} 14. Bf3
{[%clk 0:03:45]} 14... Qd7 {[%clk 0:03:21.7]} 15. b4 {[%clk 0:03:44.4]} 15... a6
{[%clk 0:03:19.4]} 16. a4 {[%clk 0:03:42.4]} 16... Na7 {[%clk 0:03:17.1]} 17.
Nd2 {[%clk 0:03:33.5]} 17... b5 {[%clk 0:03:15.8]} 18. a5 {[%clk 0:03:24.6]}
18... O-O-O {[%clk 0:02:35.2]} 19. Nb3 {[%clk 0:03:21.6]} 19... Qc6 {[%clk
0:02:14.9]} 20. Nc5 {[%clk 0:03:15]} 20... Kb8 {[%clk 0:02:10]} 21. Qd3 {[%clk
0:03:04.8]} 21... Nc8 {[%clk 0:02:06.8]} 22. f5 {[%clk 0:02:46.7]} 22... gxf5
{[%clk 0:02:02.1]} 23. gxf5 {[%clk 0:02:46.6]} 23... Bd7 {[%clk 0:02:00.8]} 24.
Bg5 {[%clk 0:02:19.9]} 24... f6 {[%clk 0:01:34]} 25. e6 {[%clk 0:01:55.9]} 25...
fxg5 {[%clk 0:00:52.6]} 26. Nxd7+ {[%clk 0:01:45.6]} 26... Rxd7 {[%clk
0:00:37.4]} 27. exd7 {[%clk 0:01:44.8]} 27... Qxd7 {[%clk 0:00:37]} 28. O-O-O
{[%clk 0:01:38.6]} 28... Bh6 {[%clk 0:00:35.2]} 29. Bg4 {[%clk 0:01:36.9]} 29...
Nd6 {[%clk 0:00:31.1]} 30. Re1 {[%clk 0:01:34.1]} 30... Ne4 {[%clk 0:00:30]} 31.
Rxe4 {[%clk 0:01:15.8]} 31... dxe4 {[%clk 0:00:28.6]} 32. Qxe4 {[%clk
0:01:15.7]} 32... Qd6 {[%clk 0:00:26.2]} 33. Kb2 {[%clk 0:01:01.5]} 33... Bg7
{[%clk 0:00:21.3]} 34. Bf3 {[%clk 0:00:59.5]} 34... Kc8 {[%clk 0:00:19]} 35.
Qa8+ {[%clk 0:00:54.1]} 35... Kd7 {[%clk 0:00:18.1]} 36. Bd5 {[%clk 0:00:43.5]}
36... Bf6 {[%clk 0:00:17.2]} 37. Be6+ {[%clk 0:00:41.4]} 37... Qxe6 {[%clk
0:00:15.4]} 38. fxe6+ {[%clk 0:00:41.3]} 38... Kxe6 {[%clk 0:00:15.2]} 39. Qe4+
{[%clk 0:00:40.2]} 39... Kd7 {[%clk 0:00:13.9]} 40. d5 {[%clk 0:00:37.5]} 40...
c6 {[%clk 0:00:12.8]} 41. Qe6+ {[%clk 0:00:36.3]} 41... Kc7 {[%clk 0:00:12.7]}
42. Qxc6+ {[%clk 0:00:35.8]} 42... Kd8 {[%clk 0:00:11.6]} 43. Qb6+ {[%clk
0:00:32.9]} 43... Ke8 {[%clk 0:00:10.6]} 44. Qxa6 {[%clk 0:00:32.2]} 44... g4
{[%clk 0:00:10.5]} 45. Qxb5+ {[%clk 0:00:29.7]} 45... Kf7 {[%clk 0:00:10.4]} 46.
a6 {[%clk 0:00:27.9]} 46... Kg6 {[%clk 0:00:09.8]} 47. a7 {[%clk 0:00:27.2]}
47... Be5 {[%clk 0:00:09.3]} 48. a8=Q {[%clk 0:00:25.5]} 48... Bd6 {[%clk
0:00:09.2]} 49. Qd3+ {[%clk 0:00:23.5]} 49... Kf6 {[%clk 0:00:09.1]} 50. Qf1+
{[%clk 0:00:22.3]} 50... Kg5 {[%clk 0:00:08.9]} 51. Qg8+ {[%clk 0:00:21.3]}
51... Kh4 {[%clk 0:00:07.8]} 52. Qh1+ {[%clk 0:00:21.2]} 52... Kg3 {[%clk
0:00:07]} 53. Qh2+ {[%clk 0:00:21.1]} 53... Kxh2 {[%clk 0:00:05]} 54. Qxg4
{[%clk 0:00:19]} 54... Bg3 {[%clk 0:00:03.2]} 55. Qxg3+ {[%clk 0:00:17]} 55...
Kh1 {[%clk 0:00:03.1]} 56. Qg1+ {[%clk 0:00:15.8]} 56... Kxg1 {[%clk 0:00:01.2]}
57. b5 {[%clk 0:00:15.3]} 57... e6 {[%clk 0:00:01.1]} 58. dxe6 {[%clk
0:00:15.2]} 1-0

[Event "Live Chess"]
[Site "Chess.com"]
[Date "2023.05.21"]
[Round "-"]
[White "CeladonFish"]
[Black "Ian-Morley"]
[Result "1/2-1/2"]
[WhiteElo "1072"]
[BlackElo "1005"]
[TimeControl "300"]
[EndTime "23:45:30 PDT"]
[Termination "Game drawn by repetition"]

1. d4 {[%clk 0:04:56.7]} 1... e5 {[%clk 0:04:58.9]} 2. Nf3 {[%clk 0:04:54.3]}
2... Nc6 {[%clk 0:04:57.4]} 3. d5 {[%clk 0:04:53]} 3... Nce7 {[%clk 0:04:54.8]}
4. e4 {[%clk 0:04:51.9]} 4... d6 {[%clk 0:04:53.6]} 5. Bc4 {[%clk 0:04:49.1]}
5... Bg4 {[%clk 0:04:51.9]} 6. Nc3 {[%clk 0:04:47.8]} 6... Ng6 {[%clk
0:04:51.1]} 7. h3 {[%clk 0:04:46.4]} 7... Bxf3 {[%clk 0:04:50]} 8. Qxf3 {[%clk
0:04:45.6]} 8... Nf6 {[%clk 0:04:49.4]} 9. Bb5+ {[%clk 0:04:39.1]} 9... Nd7
{[%clk 0:04:47.3]} 10. Nb1 {[%clk 0:04:26.5]} 10... a6 {[%clk 0:04:43.7]} 11.
Bxd7+ {[%clk 0:04:25]} 11... Qxd7 {[%clk 0:04:41.6]} 12. Nc3 {[%clk 0:04:20.4]}
12... Nf4 {[%clk 0:04:40.1]} 13. Bxf4 {[%clk 0:04:15.6]} 13... exf4 {[%clk
0:04:38.8]} 14. Qxf4 {[%clk 0:04:14.9]} 14... f6 {[%clk 0:04:38.2]} 15. O-O-O
{[%clk 0:04:09.2]} 15... O-O-O {[%clk 0:04:36.9]} 16. Rd3 {[%clk 0:04:01.3]}
16... b5 {[%clk 0:04:35.8]} 17. Ne2 {[%clk 0:03:59]} 17... a5 {[%clk 0:04:34.3]}
18. Ra3 {[%clk 0:03:56.3]} 18... a4 {[%clk 0:04:33.1]} 19. Qe3 {[%clk
0:03:51.6]} 19... b4 {[%clk 0:04:31.8]} 20. Qa7 {[%clk 0:03:45.2]} 20... c5
{[%clk 0:04:25.7]} 21. Qa8+ {[%clk 0:03:39.7]} 21... Kc7 {[%clk 0:04:24.4]} 22.
Qa7+ {[%clk 0:03:22.1]} 22... Kc8 {[%clk 0:04:23.3]} 23. Qa8+ {[%clk 0:03:19.3]}
23... Kc7 {[%clk 0:04:22.2]} 24. Qa7+ {[%clk 0:03:18.3]} 24... Kc8 {[%clk
0:04:21.5]} 1/2-1/2

[Event "Live Chess"]
[Site "Chess.com"]
[Date "2023.05.21"]
[Round "-"]
[White "Duke_of_Bebington"]
[Black "ossie57"]
[Result "0-1"]
[WhiteElo "1581"]
[BlackElo "1934"]
[TimeControl "300"]
[EndTime "23:45:35 PDT"]
[Termination "ossie57 won on time"]

1. e4 {[%clk 0:04:57.4]} 1... c5 {[%clk 0:04:58]} 2. c3 {[%clk 0:04:55.8]} 2...
d5 {[%clk 0:04:55.4]} 3. exd5 {[%clk 0:04:54.4]} 3... Qxd5 {[%clk 0:04:54.6]} 4.
d4 {[%clk 0:04:51.3]} 4... Nf6 {[%clk 0:04:39.6]} 5. Nf3 {[%clk 0:04:47.2]} 5...
Bg4 {[%clk 0:04:35.7]} 6. Be2 {[%clk 0:04:44.5]} 6... Nc6 {[%clk 0:04:29.8]} 7.
dxc5 {[%clk 0:04:36.6]} 7... Qxd1+ {[%clk 0:04:24.1]} 8. Bxd1 {[%clk 0:04:34.4]}
8... e6 {[%clk 0:04:20]} 9. b4 {[%clk 0:04:32.8]} 9... a5 {[%clk 0:04:18.7]} 10.
Bd2 {[%clk 0:04:29.3]} 10... Ne4 {[%clk 0:04:13.7]} 11. b5 {[%clk 0:04:19.4]}
11... Nd8 {[%clk 0:03:56.5]} 12. Be3 {[%clk 0:04:15.3]} 12... Rc8 {[%clk
0:03:49.7]} 13. O-O {[%clk 0:04:02.6]} 13... Nxc5 {[%clk 0:03:48.8]} 14. a4
{[%clk 0:03:52]} 14... b6 {[%clk 0:03:47.4]} 15. Nbd2 {[%clk 0:03:31.8]} 15...
Be7 {[%clk 0:03:39.3]} 16. Bc2 {[%clk 0:03:26.3]} 16... O-O {[%clk 0:03:37.7]}
17. h3 {[%clk 0:03:22.4]} 17... Bh5 {[%clk 0:03:35.2]} 18. Nc4 {[%clk 0:03:10]}
18... Rb8 {[%clk 0:03:24.4]} 19. Nce5 {[%clk 0:03:03.5]} 19... Bxf3 {[%clk
0:03:18.9]} 20. Nxf3 {[%clk 0:02:58.5]} 20... f6 {[%clk 0:03:09.5]} 21. Rad1
{[%clk 0:02:50.6]} 21... Nf7 {[%clk 0:03:08.3]} 22. Nd4 {[%clk 0:02:45.9]} 22...
Nd8 {[%clk 0:02:45.3]} 23. Nb3 {[%clk 0:02:30.4]} 23... Nxb3 {[%clk 0:02:40.1]}
24. Bxb3 {[%clk 0:02:30.3]} 24... Kh8 {[%clk 0:02:32.5]} 25. Rd7 {[%clk
0:02:24.8]} 25... Re8 {[%clk 0:02:27.8]} 26. Rfd1 {[%clk 0:01:58.6]} 26... Bf8
{[%clk 0:02:26.3]} 27. Kf1 {[%clk 0:01:34.2]} 27... Nb7 {[%clk 0:02:24.5]} 28.
Bxb6 {[%clk 0:01:20.7]} 28... Rec8 {[%clk 0:02:13.9]} 29. Bxe6 {[%clk
0:01:05.2]} 29... Rxc3 {[%clk 0:02:09.8]} 30. Bd5 {[%clk 0:00:37.3]} 30... Nc5
{[%clk 0:01:57.3]} 31. Bxc5 {[%clk 0:00:31.8]} 31... Rxc5 {[%clk 0:01:57.2]} 32.
Bc6 {[%clk 0:00:27.8]} 32... Re5 {[%clk 0:01:49.7]} 33. Ra7 {[%clk 0:00:25.5]}
33... Kg8 {[%clk 0:01:31.6]} 34. Rxa5 {[%clk 0:00:24.3]} 34... Kf7 {[%clk
0:01:28.8]} 35. Ra7+ {[%clk 0:00:22.9]} 35... Kg6 {[%clk 0:01:27.9]} 36. a5
{[%clk 0:00:20.6]} 36... Bc5 {[%clk 0:01:25.1]} 37. Rad7 {[%clk 0:00:16.2]}
37... Rbe8 {[%clk 0:01:15.2]} 38. Bf3 {[%clk 0:00:10.5]} 38... Rb8 {[%clk
0:01:11.1]} 39. b6 {[%clk 0:00:08.7]} 39... Bxb6 {[%clk 0:01:10.3]} 40. axb6
{[%clk 0:00:07.5]} 40... Rxb6 {[%clk 0:01:09.7]} 41. R7d6 {[%clk 0:00:06.7]}
41... Rb2 {[%clk 0:01:06.9]} 42. R6d2 {[%clk 0:00:04.8]} 42... Rb3 {[%clk
0:01:05.6]} 43. Re2 {[%clk 0:00:03.2]} 43... Rxe2 {[%clk 0:01:01.6]} 44. Bxe2
{[%clk 0:00:01.9]} 44... Rb4 {[%clk 0:01:00.8]} 45. Rd3 {[%clk 0:00:01.3]} 45...
Rb1+ {[%clk 0:00:59.8]} 46. Rd1 {[%clk 0:00:01]} 46... Rb2 {[%clk 0:00:58.9]}
0-1